[Event "*** SCC Grand Prix: Titled Tuesday Blitz"]
[Site "Chess.com"]
[Date "2020.06.23"]
[Round "1"]
[White "silverback96"]
[Black "mbojan"]
[Result "1/2-1/2"]
[WhiteElo "2265"]
[BlackElo "2589"]
[TimeControl "180+1"]
[EndTime "10:08:13 PDT"]
[Termination "Game drawn by repetition"]

1. d4 {[%clk 0:02:54.4]} 1... Nf6 {[%clk 0:03:00]} 2. c4 {[%clk 0:02:54.3]} 2...
c5 {[%clk 0:03:00.2]} 3. d5 {[%clk 0:02:54.1]} 3... b5 {[%clk 0:03:00.4]} 4.
cxb5 {[%clk 0:02:55]} 4... a6 {[%clk 0:03:00.9]} 5. bxa6 {[%clk 0:02:55.9]} 5...
g6 {[%clk 0:03:00.7]} 6. Nc3 {[%clk 0:02:56.8]} 6... Bg7 {[%clk 0:03:01]} 7. e4
{[%clk 0:02:53.1]} 7... O-O {[%clk 0:03:00]} 8. a7 {[%clk 0:02:50.6]} 8... Rxa7
{[%clk 0:02:58.8]} 9. Nf3 {[%clk 0:02:49.3]} 9... d6 {[%clk 0:02:58.7]} 10. Bd3
{[%clk 0:02:44.8]} 10... Ba6 {[%clk 0:02:58.8]} 11. O-O {[%clk 0:02:41.1]} 11...
Nfd7 {[%clk 0:02:52.4]} 12. Nb5 {[%clk 0:02:34.7]} 12... Rb7 {[%clk 0:02:38.4]}
13. a4 {[%clk 0:02:33.8]} 13... Ne5 {[%clk 0:02:38.2]} 14. Nxe5 {[%clk
0:02:26.3]} 14... Bxe5 {[%clk 0:02:39.1]} 15. Qc2 {[%clk 0:02:08.3]} 15... Bg7
{[%clk 0:02:27.2]} 16. Bd2 {[%clk 0:02:06.4]} 16... Qb6 {[%clk 0:02:22.7]} 17.
Bc3 {[%clk 0:02:05.1]} 17... Bxc3 {[%clk 0:02:13]} 18. bxc3 {[%clk 0:01:57.5]}
18... Nd7 {[%clk 0:02:07.4]} 19. c4 {[%clk 0:01:47.2]} 19... Qa5 {[%clk
0:02:03]} 20. Rfb1 {[%clk 0:01:45.5]} 20... Rfb8 {[%clk 0:01:32.7]} 21. h4
{[%clk 0:01:43.7]} 21... Ne5 {[%clk 0:01:31.8]} 22. h5 {[%clk 0:01:40.3]} 22...
Kg7 {[%clk 0:01:24.5]} 23. Qb2 {[%clk 0:01:26.6]} 23... Kg8 {[%clk 0:01:10]} 24.
Be2 {[%clk 0:01:26.4]} 24... Ra8 {[%clk 0:00:52.4]} 25. f4 {[%clk 0:01:25.5]}
25... Nd7 {[%clk 0:00:52.1]} 26. Kf2 {[%clk 0:01:25.2]} 26... Nf6 {[%clk
0:00:50.1]} 27. Bf3 {[%clk 0:01:19.1]} 27... Kg7 {[%clk 0:00:40.6]} 28. Rh1
{[%clk 0:01:17.6]} 28... Bxb5 {[%clk 0:00:26.4]} 29. axb5 {[%clk 0:01:16.7]}
29... Qd8 {[%clk 0:00:27.2]} 30. g4 {[%clk 0:01:07.6]} 30... Kg8 {[%clk
0:00:21]} 31. Kg3 {[%clk 0:01:00.5]} 31... g5 {[%clk 0:00:18.6]} 32. fxg5 {[%clk
0:00:58.2]} 32... Nd7 {[%clk 0:00:19]} 33. g6 {[%clk 0:00:45.4]} 33... Ne5
{[%clk 0:00:18]} 34. Be2 {[%clk 0:00:33.4]} 34... Rba7 {[%clk 0:00:11.4]} 35.
Rxa7 {[%clk 0:00:25.7]} 35... Rxa7 {[%clk 0:00:12.3]} 36. Ra1 {[%clk 0:00:26.1]}
36... Qa8 {[%clk 0:00:11.3]} 37. Rxa7 {[%clk 0:00:25.9]} 37... Qxa7 {[%clk
0:00:12.2]} 38. b6 {[%clk 0:00:26.8]} 38... Qb7 {[%clk 0:00:12.3]} 39. Qb5
{[%clk 0:00:26.9]} 39... fxg6 {[%clk 0:00:12]} 40. hxg6 {[%clk 0:00:24.3]} 40...
hxg6 {[%clk 0:00:12.9]} 41. g5 {[%clk 0:00:24.3]} 41... Kf7 {[%clk 0:00:07.9]}
42. Bg4 {[%clk 0:00:24.3]} 42... Nxg4 {[%clk 0:00:06.5]} 43. Kxg4 {[%clk
0:00:25.2]} 43... Qc8+ {[%clk 0:00:07]} 44. Kg3 {[%clk 0:00:24.1]} 44... Qb7
{[%clk 0:00:07.1]} 45. Qc6 {[%clk 0:00:20.4]} 45... Qa6 {[%clk 0:00:07.4]} 46.
b7 {[%clk 0:00:20]} 46... Qa3+ {[%clk 0:00:07.5]} 47. Kf4 {[%clk 0:00:20]} 47...
Qd3 {[%clk 0:00:04.5]} 48. b8=Q {[%clk 0:00:17.5]} 48... Qf1+ {[%clk 0:00:04.7]}
49. Ke3 {[%clk 0:00:17.6]} 49... Qe1+ {[%clk 0:00:05.2]} 50. Kd3 {[%clk
0:00:17.5]} 50... Qd1+ {[%clk 0:00:05.6]} 51. Kc3 {[%clk 0:00:17.4]} 51... Qc1+
{[%clk 0:00:06.1]} 52. Kd3 {[%clk 0:00:17.5]} 52... Qd1+ {[%clk 0:00:06.5]} 53.
Ke3 {[%clk 0:00:18.2]} 53... Qe1+ {[%clk 0:00:07]} 54. Kf3 {[%clk 0:00:18.6]}
54... Qf1+ {[%clk 0:00:07.5]} 55. Kg4 {[%clk 0:00:17.7]} 55... Qg1+ {[%clk
0:00:07.7]} 56. Kf3 {[%clk 0:00:13.1]} 56... Qf1+ {[%clk 0:00:08]} 57. Ke3
{[%clk 0:00:13.4]} 57... Qe1+ {[%clk 0:00:08.4]} 1/2-1/2

[Event "*** SCC Grand Prix: Titled Tuesday Blitz"]
[Site "Chess.com"]
[Date "2020.06.23"]
[Round "1"]
[White "Yaacovn"]
[Black "MIJUAREZ"]
[Result "1-0"]
[WhiteElo "2772"]
[BlackElo "2393"]
[TimeControl "180+1"]
[EndTime "10:08:14 PDT"]
[Termination "Yaacovn won on time"]

1. d4 {[%clk 0:01:43.4]} 1... d5 {[%clk 0:02:57]} 2. e3 {[%clk 0:01:36.8]} 2...
Nf6 {[%clk 0:02:52.8]} 3. Bd3 {[%clk 0:01:29.7]} 3... Bg4 {[%clk 0:02:52.3]} 4.
Ne2 {[%clk 0:01:18]} 4... e6 {[%clk 0:02:50.9]} 5. f3 {[%clk 0:01:00.8]} 5...
Bh5 {[%clk 0:02:42.4]} 6. Nf4 {[%clk 0:00:58.4]} 6... Bg6 {[%clk 0:02:42]} 7.
Nxg6 {[%clk 0:00:58.2]} 7... hxg6 {[%clk 0:02:42.6]} 8. Nd2 {[%clk 0:00:57.9]}
8... Bd6 {[%clk 0:02:41.9]} 9. f4 {[%clk 0:00:57.3]} 9... c5 {[%clk 0:02:22.3]}
10. c3 {[%clk 0:00:55.2]} 10... Nc6 {[%clk 0:02:22.8]} 11. Nf3 {[%clk
0:00:50.5]} 11... Qc7 {[%clk 0:02:11]} 12. Ne5 {[%clk 0:00:49.5]} 12... Nd7
{[%clk 0:01:53.1]} 13. O-O {[%clk 0:00:48.8]} 13... g5 {[%clk 0:01:51.1]} 14.
Qg4 {[%clk 0:00:44]} 14... Ncxe5 {[%clk 0:01:32.4]} 15. fxe5 {[%clk 0:00:29.7]}
15... Be7 {[%clk 0:01:32.7]} 16. h3 {[%clk 0:00:21.1]} 16... Rh4 {[%clk
0:01:07]} 17. Qf3 {[%clk 0:00:20.4]} 17... f5 {[%clk 0:01:00.3]} 18. exf6 {[%clk
0:00:20.7]} 18... Nxf6 {[%clk 0:00:58.8]} 19. Bd2 {[%clk 0:00:15.7]} 19... O-O-O
{[%clk 0:00:51.2]} 20. Be1 {[%clk 0:00:15.8]} 20... g4 {[%clk 0:00:46.5]} 21.
Qg3 {[%clk 0:00:15.9]} 21... Rh6 {[%clk 0:00:44]} 22. Qxc7+ {[%clk 0:00:15.7]}
22... Kxc7 {[%clk 0:00:43.3]} 23. h4 {[%clk 0:00:16.3]} 23... Bd6 {[%clk
0:00:29.6]} 24. a3 {[%clk 0:00:12.2]} 24... Rd7 {[%clk 0:00:26.5]} 25. g3 {[%clk
0:00:12.2]} 25... Nh5 {[%clk 0:00:25.4]} 26. Kg2 {[%clk 0:00:12.3]} 26... Rf6
{[%clk 0:00:25.8]} 27. Rxf6 {[%clk 0:00:11.5]} 27... gxf6 {[%clk 0:00:25.1]} 28.
Bg6 {[%clk 0:00:10.4]} 28... Ng7 {[%clk 0:00:22.8]} 29. e4 {[%clk 0:00:09.5]}
29... dxe4 {[%clk 0:00:21.5]} 30. Bxe4 {[%clk 0:00:10.4]} 30... f5 {[%clk
0:00:21.4]} 31. Bd3 {[%clk 0:00:09.4]} 31... cxd4 {[%clk 0:00:20.6]} 32. cxd4
{[%clk 0:00:10.3]} 32... Kd8 {[%clk 0:00:20.4]} 33. Bf2 {[%clk 0:00:10.5]} 33...
Nh5 {[%clk 0:00:20.1]} 34. Rd1 {[%clk 0:00:10.6]} 34... Bb8 {[%clk 0:00:17.9]}
35. Bc4 {[%clk 0:00:10.6]} 35... Rd6 {[%clk 0:00:16]} 36. d5 {[%clk 0:00:11]}
36... e5 {[%clk 0:00:15]} 37. Bc5 {[%clk 0:00:10.6]} 37... Rf6 {[%clk
0:00:13.1]} 38. d6 {[%clk 0:00:10.7]} 38... f4 {[%clk 0:00:13]} 39. Bd5 {[%clk
0:00:09.4]} 39... f3+ {[%clk 0:00:12.2]} 40. Kf2 {[%clk 0:00:09.2]} 40... Bxd6
{[%clk 0:00:11.5]} 41. Be4 {[%clk 0:00:07.8]} 41... Ke7 {[%clk 0:00:10.9]} 42.
Bxa7 {[%clk 0:00:07.2]} 42... Rf8 {[%clk 0:00:09.1]} 43. Be3 {[%clk 0:00:07.2]}
43... Nf6 {[%clk 0:00:08.6]} 44. Bg5 {[%clk 0:00:07.6]} 44... Rc8 {[%clk
0:00:08.4]} 45. Bxf6+ {[%clk 0:00:07.2]} 45... Kxf6 {[%clk 0:00:06]} 46. Rxd6+
{[%clk 0:00:06.8]} 46... Ke7 {[%clk 0:00:06.2]} 47. Rd2 {[%clk 0:00:06.5]} 47...
Rc4 {[%clk 0:00:06.5]} 48. Bxf3 {[%clk 0:00:06.4]} 48... gxf3 {[%clk 0:00:05.4]}
49. Kxf3 {[%clk 0:00:07.3]} 49... Ke6 {[%clk 0:00:04.9]} 50. h5 {[%clk
0:00:07.1]} 50... Kf5 {[%clk 0:00:04.9]} 51. Rh2 {[%clk 0:00:06.3]} 51... e4+
{[%clk 0:00:04.8]} 52. Ke3 {[%clk 0:00:06.7]} 52... Rc8 {[%clk 0:00:03]} 53. h6
{[%clk 0:00:07.1]} 53... Rh8 {[%clk 0:00:02.8]} 54. h7 {[%clk 0:00:07.6]} 54...
Kg4 {[%clk 0:00:02.4]} 55. Kxe4 {[%clk 0:00:07.2]} 55... Kxg3 {[%clk 0:00:02.7]}
56. Rh6 {[%clk 0:00:07.3]} 56... Kg4 {[%clk 0:00:02.3]} 57. Kd4 {[%clk 0:00:07]}
1-0

[Event "*** SCC Grand Prix: Titled Tuesday Blitz"]
[Site "Chess.com"]
[Date "2020.06.23"]
[Round "1"]
[White "esrosenberg"]
[Black "Stormeman100100"]
[Result "1-0"]
[WhiteElo "2126"]
[BlackElo "2496"]
[TimeControl "180+1"]
[EndTime "10:08:14 PDT"]
[Termination "esrosenberg won by checkmate"]

1. Nf3 {[%clk 0:03:00.9]} 1... Nf6 {[%clk 0:02:56.6]} 2. c4 {[%clk 0:03:01.1]}
2... e6 {[%clk 0:02:55.5]} 3. Nc3 {[%clk 0:03:01.1]} 3... d5 {[%clk 0:02:43.3]}
4. d4 {[%clk 0:03:00.9]} 4... Be7 {[%clk 0:02:34.1]} 5. Bg5 {[%clk 0:03:00.4]}
5... O-O {[%clk 0:02:33.3]} 6. e3 {[%clk 0:03:00.7]} 6... h6 {[%clk 0:02:32.9]}
7. Bf4 {[%clk 0:03:00.9]} 7... Nbd7 {[%clk 0:02:29.8]} 8. Qc2 {[%clk 0:02:56.6]}
8... c5 {[%clk 0:02:28]} 9. Rd1 {[%clk 0:02:54.3]} 9... cxd4 {[%clk 0:02:25.9]}
10. exd4 {[%clk 0:02:54.6]} 10... b6 {[%clk 0:02:22.6]} 11. cxd5 {[%clk
0:02:39.2]} 11... Nxd5 {[%clk 0:02:21.3]} 12. Nxd5 {[%clk 0:02:37.8]} 12... exd5
{[%clk 0:02:22.2]} 13. Bb5 {[%clk 0:02:19.9]} 13... Nf6 {[%clk 0:02:20.4]} 14.
O-O {[%clk 0:02:13.8]} 14... Bd7 {[%clk 0:01:59.7]} 15. Ba6 {[%clk 0:02:01.5]}
15... Bc8 {[%clk 0:01:56.7]} 16. Bd3 {[%clk 0:01:40.9]} 16... Bg4 {[%clk
0:01:55]} 17. Rde1 {[%clk 0:01:19.8]} 17... Bxf3 {[%clk 0:01:54.3]} 18. gxf3
{[%clk 0:01:20.7]} 18... Bd6 {[%clk 0:01:54.8]} 19. Be5 {[%clk 0:01:19.8]} 19...
Nh5 {[%clk 0:01:52.5]} 20. Kh1 {[%clk 0:01:08.3]} 20... Rc8 {[%clk 0:01:43.2]}
21. Qd2 {[%clk 0:01:04.8]} 21... Bxe5 {[%clk 0:01:34.1]} 22. Rxe5 {[%clk
0:01:03]} 22... Qh4 {[%clk 0:01:32]} 23. Rg1 {[%clk 0:00:59.4]} 23... Nf6 {[%clk
0:01:04.6]} 24. Rg3 {[%clk 0:00:48]} 24... Rc7 {[%clk 0:01:02.5]} 25. Kg2 {[%clk
0:00:45.2]} 25... Rfc8 {[%clk 0:01:01.2]} 26. Rh3 {[%clk 0:00:42.3]} 26... Qxh3+
{[%clk 0:00:50.1]} 27. Kxh3 {[%clk 0:00:42.5]} 27... Rc1 {[%clk 0:00:48.2]} 28.
Bf5 {[%clk 0:00:37.7]} 28... R8c7 {[%clk 0:00:44.9]} 29. Re7 {[%clk 0:00:27.3]}
29... Rxe7 {[%clk 0:00:42.3]} 30. Qxc1 {[%clk 0:00:27.4]} 30... g6 {[%clk
0:00:41.7]} 31. Bd3 {[%clk 0:00:23]} 31... Kg7 {[%clk 0:00:41.3]} 32. Qc8 {[%clk
0:00:20.6]} 32... Nh5 {[%clk 0:00:40.2]} 33. Bb5 {[%clk 0:00:11.1]} 33... Re1
{[%clk 0:00:27.3]} 34. f4 {[%clk 0:00:08.5]} 34... Rg1 {[%clk 0:00:25]} 35. Qc7
{[%clk 0:00:04.5]} 35... g5 {[%clk 0:00:15.6]} 36. Qe5+ {[%clk 0:00:04.6]} 36...
Kg8 {[%clk 0:00:05.4]} 37. Qe8+ {[%clk 0:00:04.8]} 37... Kg7 {[%clk 0:00:05.4]}
38. Qe5+ {[%clk 0:00:05.3]} 38... Kg8 {[%clk 0:00:05.8]} 39. fxg5 {[%clk
0:00:05.7]} 39... hxg5 {[%clk 0:00:05.5]} 40. Qe8+ {[%clk 0:00:05.1]} 40... Kg7
{[%clk 0:00:05.7]} 41. Qe5+ {[%clk 0:00:05.1]} 41... Kg6 {[%clk 0:00:06.1]} 42.
Bd3+ {[%clk 0:00:04.8]} 42... f5 {[%clk 0:00:03.9]} 43. Qxf5+ {[%clk 0:00:04.2]}
43... Kg7 {[%clk 0:00:03.9]} 44. Qg6+ {[%clk 0:00:03.7]} 44... Kf8 {[%clk
0:00:04]} 45. Qxh5 {[%clk 0:00:04.2]} 45... Ke7 {[%clk 0:00:04.4]} 46. Qh7+
{[%clk 0:00:04.7]} 46... Kd6 {[%clk 0:00:04.2]} 47. Qf5 {[%clk 0:00:05.6]} 47...
g4+ {[%clk 0:00:04.2]} 48. Qxg4 {[%clk 0:00:05.6]} 48... Rxg4 {[%clk 0:00:05.1]}
49. Kxg4 {[%clk 0:00:06.5]} 49... b5 {[%clk 0:00:05.4]} 50. h4 {[%clk
0:00:06.8]} 50... b4 {[%clk 0:00:06.3]} 51. h5 {[%clk 0:00:07.3]} 51... a5
{[%clk 0:00:07.2]} 52. h6 {[%clk 0:00:07.8]} 52... b3 {[%clk 0:00:07.5]} 53.
axb3 {[%clk 0:00:08.1]} 53... Kc6 {[%clk 0:00:07.2]} 54. h7 {[%clk 0:00:07.5]}
54... Kb6 {[%clk 0:00:08.1]} 55. h8=Q {[%clk 0:00:08.2]} 55... a4 {[%clk
0:00:09]} 56. Qe5 {[%clk 0:00:08.9]} 56... Ka5 {[%clk 0:00:09.9]} 57. bxa4
{[%clk 0:00:09.3]} 57... Kb4 {[%clk 0:00:09.5]} 58. Qxd5 {[%clk 0:00:09.4]}
58... Kxa4 {[%clk 0:00:10.4]} 59. Qb5# {[%clk 0:00:09.6]} 1-0

[Event "*** SCC Grand Prix: Titled Tuesday Blitz"]
[Site "Chess.com"]
[Date "2020.06.23"]
[Round "1"]
[White "Gabrielian_Artur"]
[Black "eightbyeightchess"]
[Result "1-0"]
[WhiteElo "2759"]
[BlackElo "2392"]
[TimeControl "180+1"]
[EndTime "10:08:20 PDT"]
[Termination "Gabrielian_Artur won on time"]

1. e4 {[%clk 0:02:59.7]} 1... e6 {[%clk 0:02:59.2]} 2. d4 {[%clk 0:02:58.9]}
2... d5 {[%clk 0:02:59.9]} 3. e5 {[%clk 0:02:57]} 3... c5 {[%clk 0:02:59.3]} 4.
c3 {[%clk 0:02:57.1]} 4... Qb6 {[%clk 0:02:59.2]} 5. Nf3 {[%clk 0:02:56.8]} 5...
Bd7 {[%clk 0:02:58.9]} 6. Be2 {[%clk 0:02:54.9]} 6... Bb5 {[%clk 0:02:55.7]} 7.
O-O {[%clk 0:02:54.2]} 7... Bxe2 {[%clk 0:02:55.1]} 8. Qxe2 {[%clk 0:02:54.5]}
8... cxd4 {[%clk 0:02:55.4]} 9. cxd4 {[%clk 0:02:54]} 9... Nc6 {[%clk 0:02:56]}
10. Nc3 {[%clk 0:02:50.8]} 10... Nge7 {[%clk 0:02:55]} 11. Rd1 {[%clk 0:02:28]}
11... Nf5 {[%clk 0:02:48.8]} 12. Be3 {[%clk 0:02:12.8]} 12... Be7 {[%clk
0:02:42.8]} 13. Rac1 {[%clk 0:02:05.7]} 13... O-O {[%clk 0:02:35.2]} 14. a3
{[%clk 0:02:05.6]} 14... a5 {[%clk 0:02:26]} 15. Qb5 {[%clk 0:02:00.4]} 15...
Qc7 {[%clk 0:02:18.5]} 16. Qd3 {[%clk 0:01:58.9]} 16... Rad8 {[%clk 0:02:09.1]}
17. Na4 {[%clk 0:01:53.9]} 17... f6 {[%clk 0:02:08.2]} 18. exf6 {[%clk
0:01:49.3]} 18... Rxf6 {[%clk 0:01:56.1]} 19. Ne5 {[%clk 0:01:48.8]} 19... Rdf8
{[%clk 0:01:24.4]} 20. Bg5 {[%clk 0:01:40.6]} 20... Rg6 {[%clk 0:01:22.1]} 21.
Nxg6 {[%clk 0:01:35.4]} 21... hxg6 {[%clk 0:01:22.6]} 22. Bxe7 {[%clk
0:01:34.8]} 22... Qxe7 {[%clk 0:01:23.1]} 23. Qh3 {[%clk 0:01:09.7]} 23... Ncxd4
{[%clk 0:01:20.5]} 24. Nc3 {[%clk 0:01:08.9]} 24... b5 {[%clk 0:01:12.8]} 25.
Re1 {[%clk 0:01:07.8]} 25... b4 {[%clk 0:01:01.1]} 26. Nxd5 {[%clk 0:01:04.9]}
26... Qg5 {[%clk 0:01:00.7]} 27. f4 {[%clk 0:01:02.8]} 27... Qd8 {[%clk
0:00:59]} 28. Ne3 {[%clk 0:01:02.5]} 28... Qb6 {[%clk 0:00:50.1]} 29. Kh1 {[%clk
0:01:01.3]} 29... bxa3 {[%clk 0:00:34.7]} 30. bxa3 {[%clk 0:01:00.7]} 30... Rd8
{[%clk 0:00:32.7]} 31. Nxf5 {[%clk 0:00:58.7]} 31... Nxf5 {[%clk 0:00:23.7]} 32.
Qf3 {[%clk 0:00:56.8]} 32... Qb2 {[%clk 0:00:21.1]} 33. Rb1 {[%clk 0:00:44.2]}
33... Qa2 {[%clk 0:00:20.4]} 34. Qb3 {[%clk 0:00:40.6]} 34... Qf2 {[%clk
0:00:13.9]} 35. Qxe6+ {[%clk 0:00:39.5]} 35... Kh7 {[%clk 0:00:14]} 36. Qe2
{[%clk 0:00:33.8]} 36... Qxf4 {[%clk 0:00:13.1]} 37. Rb3 {[%clk 0:00:31]} 37...
Rd2 {[%clk 0:00:11.8]} 38. Rh3+ {[%clk 0:00:28.8]} 38... Nh6 {[%clk 0:00:10.7]}
39. Qe3 {[%clk 0:00:28.2]} 39... Qd6 {[%clk 0:00:07.1]} 40. Rf3 {[%clk
0:00:15.7]} 40... Rd5 {[%clk 0:00:07.1]} 41. h3 {[%clk 0:00:15.4]} 41... Nf5
{[%clk 0:00:07.1]} 42. Qf2 {[%clk 0:00:15.7]} 42... Rd2 {[%clk 0:00:06.8]} 43.
Qf1 {[%clk 0:00:13.3]} 43... Ng3+ {[%clk 0:00:06.3]} 44. Rxg3 {[%clk 0:00:13.7]}
44... Qxg3 {[%clk 0:00:07.2]} 45. Rc1 {[%clk 0:00:12.3]} 45... Qxa3 {[%clk
0:00:06.8]} 46. Re1 {[%clk 0:00:11.9]} 46... Qd6 {[%clk 0:00:06.6]} 47. Qf3
{[%clk 0:00:11.3]} 47... a4 {[%clk 0:00:06.2]} 48. Qg4 {[%clk 0:00:11.4]} 48...
a3 {[%clk 0:00:06]} 49. Qh4+ {[%clk 0:00:11.7]} 49... Kg8 {[%clk 0:00:06.2]} 50.
Qc4+ {[%clk 0:00:11.4]} 50... Qd5 {[%clk 0:00:05.9]} 51. Qc8+ {[%clk 0:00:09.1]}
51... Kh7 {[%clk 0:00:05.2]} 52. Qg4 {[%clk 0:00:10]} 52... Qf5 {[%clk
0:00:04.5]} 53. Qh4+ {[%clk 0:00:09.8]} 53... Qh5 {[%clk 0:00:04.6]} 54. Qf4
{[%clk 0:00:10.2]} 54... Rd5 {[%clk 0:00:03.1]} 55. Qa4 {[%clk 0:00:09.5]} 55...
Ra5 {[%clk 0:00:03.1]} 56. Qb3 {[%clk 0:00:09.2]} 56... a2 {[%clk 0:00:03.5]}
57. Qb2 {[%clk 0:00:09.5]} 57... Qb5 {[%clk 0:00:02.9]} 58. Qd4 {[%clk 0:00:08]}
58... Qb1 {[%clk 0:00:02.5]} 59. Qh4+ {[%clk 0:00:07.9]} 59... Kg8 {[%clk
0:00:02.4]} 60. Qd8+ {[%clk 0:00:08.5]} 60... Kh7 {[%clk 0:00:02.5]} 61. Qxa5
{[%clk 0:00:09.4]} 61... Qb3 {[%clk 0:00:01.4]} 62. Qd2 {[%clk 0:00:09.1]} 1-0

[Event "*** SCC Grand Prix: Titled Tuesday Blitz"]
[Site "Chess.com"]
[Date "2020.06.23"]
[Round "1"]
[White "SaqoChess_Twitch"]
[Black "youngKID"]
[Result "1/2-1/2"]
[WhiteElo "2399"]
[BlackElo "2748"]
[TimeControl "180+1"]
[EndTime "10:08:22 PDT"]
[Termination "Game drawn - insufficient material"]

1. d4 {[%clk 0:02:55.7]} 1... Nf6 {[%clk 0:02:57.9]} 2. c4 {[%clk 0:02:56.5]}
2... Nc6 {[%clk 0:02:57.5]} 3. Nc3 {[%clk 0:02:56.3]} 3... e5 {[%clk 0:02:57.6]}
4. dxe5 {[%clk 0:02:46.5]} 4... Nxe5 {[%clk 0:02:57.5]} 5. e3 {[%clk 0:02:47.4]}
5... Bb4 {[%clk 0:02:51.9]} 6. Bd2 {[%clk 0:02:46.2]} 6... Qe7 {[%clk
0:02:51.8]} 7. Be2 {[%clk 0:02:45.4]} 7... Bxc3 {[%clk 0:02:42.2]} 8. Bxc3
{[%clk 0:02:44.9]} 8... Ne4 {[%clk 0:02:42.6]} 9. Bxe5 {[%clk 0:02:41.7]} 9...
Qxe5 {[%clk 0:02:42.4]} 10. Qd4 {[%clk 0:02:42.6]} 10... Qxd4 {[%clk 0:02:40.8]}
11. exd4 {[%clk 0:02:43.5]} 11... O-O {[%clk 0:02:38.3]} 12. f3 {[%clk
0:02:24.1]} 12... Nd6 {[%clk 0:02:36.8]} 13. Kf2 {[%clk 0:02:23.8]} 13... Re8
{[%clk 0:02:27]} 14. Bd3 {[%clk 0:02:20.3]} 14... b6 {[%clk 0:02:08.5]} 15. Ne2
{[%clk 0:02:17.9]} 15... a5 {[%clk 0:02:03.7]} 16. Rhe1 {[%clk 0:02:16.1]} 16...
Ba6 {[%clk 0:02:03.2]} 17. b3 {[%clk 0:02:15.8]} 17... a4 {[%clk 0:01:51.7]} 18.
Nf4 {[%clk 0:02:13.3]} 18... c6 {[%clk 0:01:49.2]} 19. Rxe8+ {[%clk 0:02:08.4]}
19... Nxe8 {[%clk 0:01:49.1]} 20. bxa4 {[%clk 0:01:59.4]} 20... Nd6 {[%clk
0:01:38.5]} 21. c5 {[%clk 0:01:56.3]} 21... bxc5 {[%clk 0:01:26.7]} 22. dxc5
{[%clk 0:01:53.7]} 22... Bxd3 {[%clk 0:01:24.4]} 23. Nxd3 {[%clk 0:01:54.6]}
23... Nc4 {[%clk 0:01:22.8]} 24. Rb1 {[%clk 0:01:31.4]} 24... f6 {[%clk
0:00:57.9]} 25. Rb4 {[%clk 0:01:30.3]} 25... Ne5 {[%clk 0:00:57.7]} 26. Nxe5
{[%clk 0:01:29.5]} 26... fxe5 {[%clk 0:00:58.6]} 27. Rb7 {[%clk 0:01:02.1]}
27... Rxa4 {[%clk 0:00:56.6]} 28. Rxd7 {[%clk 0:00:58.5]} 28... Rxa2+ {[%clk
0:00:56.6]} 29. Kg3 {[%clk 0:00:58.5]} 29... Rc2 {[%clk 0:00:56.4]} 30. Kg4
{[%clk 0:00:56.2]} 30... Rxc5 {[%clk 0:00:45.2]} 31. Kf5 {[%clk 0:00:56.1]}
31... Rc2 {[%clk 0:00:35.1]} 32. g4 {[%clk 0:00:50.2]} 32... Rf2 {[%clk
0:00:29.4]} 33. Ke4 {[%clk 0:00:46.3]} 33... Rxh2 {[%clk 0:00:28]} 34. Kxe5
{[%clk 0:00:44]} 34... h6 {[%clk 0:00:23.5]} 35. Rc7 {[%clk 0:00:39.5]} 35...
Rc2 {[%clk 0:00:22.1]} 36. f4 {[%clk 0:00:37.9]} 36... Kh7 {[%clk 0:00:20.5]}
37. f5 {[%clk 0:00:38.1]} 37... Re2+ {[%clk 0:00:17.5]} 38. Kf4 {[%clk
0:00:31.8]} 38... Rf2+ {[%clk 0:00:17]} 39. Kg3 {[%clk 0:00:31.5]} 39... Rf1
{[%clk 0:00:10.8]} 40. Kg2 {[%clk 0:00:31]} 40... Rf4 {[%clk 0:00:09.8]} 41. Kg3
{[%clk 0:00:31.6]} 41... Rf1 {[%clk 0:00:10.1]} 42. Rxc6 {[%clk 0:00:32.2]}
42... h5 {[%clk 0:00:08.9]} 43. Kh4 {[%clk 0:00:21]} 43... hxg4 {[%clk
0:00:07.9]} 44. Kxg4 {[%clk 0:00:21.9]} 44... Rg1+ {[%clk 0:00:08.3]} 45. Kf4
{[%clk 0:00:22.3]} 45... Rf1+ {[%clk 0:00:09.2]} 46. Ke5 {[%clk 0:00:22.8]}
46... Re1+ {[%clk 0:00:09.5]} 47. Kd6 {[%clk 0:00:23.2]} 47... Rf1 {[%clk
0:00:10.4]} 48. Ke6 {[%clk 0:00:23.2]} 48... Re1+ {[%clk 0:00:08.5]} 49. Kf7
{[%clk 0:00:21.2]} 49... Rf1 {[%clk 0:00:08.2]} 50. Rc5 {[%clk 0:00:21.7]} 50...
Rf2 {[%clk 0:00:05.7]} 51. Ra5 {[%clk 0:00:20.6]} 51... Rf1 {[%clk 0:00:05.6]}
52. Ke6 {[%clk 0:00:20.8]} 52... Re1+ {[%clk 0:00:05.3]} 53. Kd5 {[%clk
0:00:21]} 53... Kh6 {[%clk 0:00:05.1]} 54. Ra7 {[%clk 0:00:19.7]} 54... Kg5
{[%clk 0:00:04.7]} 55. Rf7 {[%clk 0:00:19]} 55... Rd1+ {[%clk 0:00:03.4]} 56.
Ke4 {[%clk 0:00:18.6]} 56... Re1+ {[%clk 0:00:03.9]} 57. Kf3 {[%clk 0:00:17.5]}
57... Rf1+ {[%clk 0:00:04.4]} 58. Ke4 {[%clk 0:00:17.3]} 58... Re1+ {[%clk
0:00:05]} 59. Kd3 {[%clk 0:00:17.9]} 59... Rf1 {[%clk 0:00:04.5]} 60. Rxg7+
{[%clk 0:00:18.1]} 60... Kf6 {[%clk 0:00:05.1]} 61. Rg8 {[%clk 0:00:18.4]} 61...
Rxf5 {[%clk 0:00:05.1]} 62. Ke4 {[%clk 0:00:18.9]} 62... Re5+ {[%clk 0:00:05.6]}
63. Kd4 {[%clk 0:00:19.6]} 63... Re7 {[%clk 0:00:06.5]} 64. Rf8+ {[%clk
0:00:19.5]} 64... Rf7 {[%clk 0:00:07.4]} 65. Rxf7+ {[%clk 0:00:19.9]} 65... Kxf7
{[%clk 0:00:07.4]} 1/2-1/2